fUST/lending_fUST_20240722
["ID","MTS","AMOUNT","RATE_DAILY","PERIOD"]
[332855605,1721585238126,-183.418748,0.00013808,2]
[332855606,1721585238148,-620.81634668,0.0001469,2]
[332855607,1721585238173,-1011.16365627,0.0001469,2]
[332855608,1721585238398,-250.0,0.00014723,2]
[332855609,1721585238423,-250.0,0.00014762,2]
[332855610,1721585238446,-50.65319426,0.00014795,2]
[332855611,1721585242106,-114.34680574,0.00014795,2]
[332855612,1721585242130,-250.0,0.00014801,2]
[332855613,1721585242153,-500.0,0.00014803,2]
[332855614,1721585242176,-500.0,0.00014803,2]
[332855615,1721585242197,-500.0,0.00014803,2]
[332855616,1721585242218,-448.04344592,0.00014803,2]
[332855617,1721585245100,-51.95655408,0.00014803,2]
[332855618,1721585245123,-169.97,0.00014803,2]
[332855619,1721585245145,-500.0,0.00014803,2]
[332855620,1721585245168,-449.58184146,0.00014803,2]
[332855621,1721585245190,-500.0,0.00014804,2]
[332855622,1721585245211,-352.88022747,0.00014804,2]
[332855623,1721585245235,-83.51931181,0.00014804,2]
[332855624,1721585246124,-98.11029274,0.00014804,2]
[332855625,1721585246147,-500.0,0.00014804,2]
[332855626,1721585246169,-500.0,0.00014804,2]
[332855627,1721585246191,-500.0,0.00014804,2]
[332855628,1721585246212,-216.45,0.00014804,2]
[332855629,1721585246236,-500.0,0.00014804,2]
[332855630,1721585246258,-500.0,0.00014804,2]
[332855631,1721585246280,-500.0,0.00014804,2]
[332855632,1721585246303,-250.0,0.0001484,2]
[332855633,1721585246327,-250.0,0.00014879,2]
[332855634,1721585246351,-250.0,0.00014918,2]
[332855635,1721585246375,-153.0,0.00015068,2]
[332855636,1721585246400,-500.0,0.00015077,2]
[332855637,1721585246422,-367.35615468,0.00015179,2]
[332855638,1721585246443,-300.0,0.00015187,2]
[332855639,1721585246467,-3729.8681059,0.00015234,2]
[332855640,1721585246493,-410.7804719,0.00015342,2]
[332855641,1721585246515,-1146.46055544,0.00015599,2]
[332855642,1721585246536,-905.52882274,0.00015604,2]
[332855643,1721585246557,-157.14943285,0.00015604,2]
[332855644,1721585246578,-500.0,0.00015604,2]
[332855645,1721585246599,-500.0,0.00015604,2]
[332855646,1721585246622,-905.52882274,0.00015604,2]
[332855647,1721585246644,-905.52882274,0.00015604,2]
[332855648,1721585246665,-500.0,0.00015604,2]
[332855649,1721585246686,-500.0,0.00015604,2]
[332855650,1721585246708,-905.52882274,0.00015604,2]
[332855651,1721585246730,-905.52882274,0.00015604,2]
[332855652,1721585246757,-562.7123201,0.00015604,2]
[332855653,1721585246778,-184.26195555,0.00015604,2]
[332855654,1721585250122,-721.26686719,0.00015604,2]
[332855655,1721585250145,-905.52882274,0.00015604,2]
[332855656,1721585250166,-855.71453454,0.00015604,2]
[332855751,1721585433903,-6681.09611482,0.00014606,2]
[332855797,1721585438462,-3309.21470978,0.00014606,2]
[332855798,1721585438472,-3000.0,0.00014607,2]
[332855799,1721585438483,-1408.0,0.0001461,2]
[332855800,1721585438493,-600.0,0.00015336,2]
[332855801,1721585438503,-1239.28487858,0.00015495,2]
[332855803,1721585438513,-172.36540767,0.00015594,2]
[332855805,1721585438522,-225.80555727,0.00015594,2]
[332855806,1721585438534,-645.87151549,0.00015594,2]
[332855807,1721585438543,-500.0,0.00015594,2]
[332855808,1721585438553,-500.0,0.00015594,2]
[332855809,1721585438562,-500.0,0.00015594,2]
[332855810,1721585438572,-500.0,0.00015594,2]
[332855811,1721585438582,-500.0,0.00015594,2]
[332855812,1721585438592,-500.0,0.00015594,2]
[332855813,1721585438602,-500.0,0.00015594,2]
[332855814,1721585438612,-500.0,0.00015594,2]
[332855815,1721585438624,-500.0,0.00015594,2]
[332855816,1721585438634,-500.0,0.00015594,2]
[332855817,1721585438643,-228.41797673,0.00015594,2]
[332855818,1721585438653,-500.0,0.00015594,2]
[332855819,1721585438663,-500.0,0.00015594,2]
[332855820,1721585438673,-1105.24918515,0.00015594,2]
[332855821,1721585438683,-500.0,0.00015594,2]
[332855822,1721585438692,-1105.24918515,0.00015594,2]
[332855823,1721585438703,-500.0,0.00015594,2]
[332855824,1721585438714,-1105.24918515,0.00015594,2]
[332855825,1721585438723,-1105.24918515,0.00015594,2]
[332855826,1721585438733,-500.0,0.00015594,2]
[332855828,1721585438742,-1105.24918515,0.00015594,2]
[332855830,1721585438751,-500.0,0.00015594,2]
[332855831,1721585438761,-173.63470223,0.00015594,2]
[332855832,1721585438771,-1105.24918515,0.00015594,2]
[332855833,1721585438780,-1105.24918515,0.00015594,2]
[332855834,1721585438789,-190.98659803,0.00015594,2]
[332855835,1721585438799,-1105.24918515,0.00015594,2]
[332855836,1721585438809,-1105.24918515,0.00015594,2]
[332855837,1721585438819,-1105.24918515,0.00015594,2]
[332855838,1721585438829,-1105.24918515,0.00015594,2]
[332855839,1721585438838,-1105.24918515,0.00015594,2]
[332855840,1721585438848,-1105.24918515,0.00015594,2]
[332855841,1721585438859,-1105.24918515,0.00015594,2]
[332855842,1721585438868,-1105.24918515,0.00015594,2]
[332855843,1721585438882,-1105.24918515,0.00015594,2]
[332855844,1721585438892,-1105.24918515,0.00015594,2]
[332855845,1721585438902,-1105.24918515,0.00015594,2]
[332855846,1721585438912,-1105.24918515,0.00015594,2]
[332855847,1721585438921,-1105.24918515,0.00015594,2]
[332855848,1721585438930,-1105.24918515,0.00015594,2]
[332855849,1721585438940,-1105.24918515,0.00015594,2]
[332855850,1721585438950,-1105.24918515,0.00015594,2]
[332855851,1721585438960,-1105.24918515,0.00015594,2]
[332855852,1721585438970,-1105.24918515,0.00015594,2]
[332855854,1721585438980,-1105.24918515,0.00015594,2]
[332855856,1721585438991,-1105.24918515,0.00015594,2]
[332855858,1721585439000,-1105.24918515,0.00015594,2]
[332855860,1721585439010,-1105.24918515,0.00015594,2]
[332855862,1721585439020,-1105.24918515,0.00015594,2]
[332855864,1721585439031,-1105.24918515,0.00015594,2]
[332855865,1721585439041,-1105.24918515,0.00015594,2]
[332855866,1721585439051,-1105.24918515,0.00015594,2]
[332855868,1721585439060,-1105.24918515,0.00015594,2]
[332855870,1721585439070,-1105.24918515,0.00015594,2]
[332855871,1721585439079,-1105.24918515,0.00015594,2]
[332855872,1721585439089,-1105.24918515,0.00015594,2]
[332855873,1721585439099,-1105.24918515,0.00015594,2]
[332855874,1721585439109,-1105.24918515,0.00015594,2]
[332855875,1721585439119,-1105.24918515,0.00015594,2]
[332855876,1721585439133,-1105.24918515,0.00015594,2]
[332855877,1721585439143,-1105.24918515,0.00015594,2]
[332855878,1721585439153,-1105.24918515,0.00015594,2]
[332855879,1721585439163,-1105.24918515,0.00015594,2]
[332855880,1721585439174,-1105.24918515,0.00015594,2]
[332855881,1721585439184,-1105.24918515,0.00015594,2]
[332855882,1721585439194,-1105.24918515,0.00015594,2]
[332855883,1721585439203,-1105.24918515,0.00015594,2]
[332855884,1721585439213,-1105.24918515,0.00015594,2]
[332855885,1721585439223,-1105.24918515,0.00015594,2]
[332855886,1721585439232,-1105.24918515,0.00015594,2]
[332855887,1721585439243,-1105.24918515,0.00015594,2]
[332855888,1721585439252,-1105.24918515,0.00015594,2]
[332855889,1721585439263,-1105.24918515,0.00015594,2]
[332855890,1721585439273,-1105.24918515,0.00015594,2]
[332855892,1721585439283,-1105.24918515,0.00015594,2]
[332855893,1721585439293,-1105.24918515,0.00015594,2]
[332855894,1721585439303,-1105.24918515,0.00015594,2]
[332855895,1721585439314,-11973.4613699,0.00015594,2]
[332855896,1721585439323,-11973.4613699,0.00015596,2]
[332855897,1721585439337,-500.0,0.00015598,2]
[332855899,1721585439348,-500.0,0.00015598,2]
[332855900,1721585439358,-550.81118484,0.00015598,2]
[332855901,1721585439368,-500.0,0.00015598,2]
[332855902,1721585439388,-500.0,0.00015598,2]
[332855903,1721585439398,-500.0,0.00015598,2]
[332855904,1721585439408,-500.0,0.00015598,2]
[332855905,1721585439418,-500.0,0.00015598,2]
[332855906,1721585439429,-23946.9227399,0.00015599,2]
[332855907,1721585439440,-500.0,0.00015603,2]
[332855908,1721585439449,-500.0,0.00015603,2]
[332855909,1721585439463,-500.0,0.00015603,2]
[332855910,1721585439473,-207.54318393,0.00015604,2]
[332855911,1721585439482,-154.72922386,0.00015604,4]
[332855912,1721585439491,-287.96313717,0.00015604,2]
[332855913,1721585439502,-195.8633417,0.00015604,2]
[332855914,1721585439512,-154.71377951,0.00015604,2]
[332855915,1721585439521,-1210.53502812,0.00015604,2]
[332855916,1721585439532,-500.0,0.00015605,2]
[332855917,1721585439541,-500.0,0.00015605,2]
[332855918,1721585439552,-510.64,0.00015605,2]
[332855919,1721585439562,-500.0,0.00015605,2]
[332855920,1721585439572,-500.0,0.00015605,2]
[332855921,1721585439583,-500.0,0.00015605,2]
[332855922,1721585439592,-500.0,0.00015605,2]
[332855923,1721585439605,-500.0,0.00015605,2]
[332855924,1721585439615,-500.0,0.00015605,2]
[332855925,1721585439630,-500.0,0.00015605,2]
[332855926,1721585439639,-500.0,0.00015605,2]
[332855927,1721585439650,-1987.57,0.00015605,2]
[332855928,1721585439660,-500.0,0.00015605,2]
[332855929,1721585439669,-500.0,0.00015605,2]
[332855930,1721585439682,-13910.13810023,0.00015606,5]
[332855931,1721585439691,-500.0,0.00015606,2]
[332855932,1721585439701,-500.0,0.00015606,2]
[332855933,1721585439710,-184.13,0.00015606,2]
[332855934,1721585439720,-575.73674924,0.00015606,2]
[332855935,1721585439730,-500.0,0.00015606,2]
[332855936,1721585439739,-538.77411081,0.00015606,2]
[332855937,1721585439749,-501.41812093,0.00015606,2]
[332855938,1721585439759,-500.0,0.00015606,2]
[332855939,1721585439768,-500.0,0.00015606,2]
[332855940,1721585439777,-500.0,0.00015606,2]
[332855941,1721585439786,-500.0,0.00015606,2]
[332855942,1721585439797,-500.0,0.00015606,2]
[332855943,1721585439807,-200.0,0.00015606,2]
[332855944,1721585439816,-500.0,0.00015606,2]
[332855946,1721585439825,-500.0,0.00015606,2]
[332855948,1721585439835,-500.0,0.00015606,2]
[332855949,1721585439845,-500.0,0.00015606,2]
[332855952,1721585439854,-500.0,0.00015606,2]
[332855954,1721585439864,-500.0,0.00015606,2]
[332855955,1721585439878,-589.48,0.00015606,2]
[332855957,1721585439887,-500.0,0.00015606,2]
[332855959,1721585439896,-500.0,0.00015606,2]
[332855961,1721585439905,-647.55,0.00015606,2]
[332855963,1721585439914,-500.0,0.00015606,2]
[332855966,1721585439923,-500.0,0.00015606,2]
[332855969,1721585439932,-500.0,0.00015606,2]
[332855972,1721585439942,-500.0,0.00015606,2]
[332855975,1721585439952,-500.0,0.00015606,2]
[332855979,1721585439962,-500.0,0.00015606,2]
[332855981,1721585439972,-500.0,0.00015606,2]
[332855982,1721585439981,-602.36606478,0.00015606,2]
[332855984,1721585439991,-500.0,0.00015606,2]
[332855986,1721585440001,-642.19,0.00015606,2]
[332855988,1721585440010,-500.0,0.00015606,2]
[332855989,1721585440019,-500.0,0.00015606,2]
[332855991,1721585440028,-500.0,0.00015606,2]
[332855993,1721585440038,-500.0,0.00015606,2]
[332855995,1721585440048,-500.0,0.00015606,2]
[332855997,1721585440058,-500.0,0.00015606,2]
[332855998,1721585440068,-500.0,0.00015606,2]
[332856000,1721585440078,-500.0,0.00015606,2]
[332856002,1721585440088,-500.0,0.00015606,2]
[332856003,1721585440098,-500.0,0.00015606,2]
[332856005,1721585440107,-500.0,0.00015606,2]
[332856007,1721585440118,-524.52769654,0.00015606,2]
[332856009,1721585440135,-500.0,0.00015606,2]
[332856010,1721585440146,-358.86959931,0.00015606,2]
[332856012,1721585440156,-539.22,0.00015606,2]
[332856015,1721585440165,-500.0,0.00015606,2]
[332856016,1721585440175,-418.92775847,0.00015606,2]
[332856017,1721585440185,-500.0,0.00015606,2]
[332856019,1721585440195,-500.0,0.00015606,2]
[332856020,1721585440205,-500.0,0.00015606,2]
[332856021,1721585440215,-500.0,0.00015606,2]
[332856022,1721585440225,-500.0,0.00015606,2]
[332856023,1721585440235,-510.57627377,0.00015606,2]
[332856024,1721585440247,-500.0,0.00015606,2]
[332856025,1721585440257,-500.0,0.00015606,2]
[332856026,1721585440268,-500.0,0.00015606,2]
[332856027,1721585440277,-500.0,0.00015606,2]
[332856028,1721585440287,-491.29984699,0.00015606,2]
[332856029,1721585440297,-500.0,0.00015606,2]
[332856030,1721585440306,-500.0,0.00015606,2]
[332856031,1721585440316,-500.0,0.00015606,2]
[332856032,1721585440326,-500.0,0.00015606,2]
[332856033,1721585440336,-500.0,0.00015606,2]
[332856034,1721585440346,-500.0,0.00015606,2]
[332856035,1721585440355,-500.0,0.00015606,2]
[332856036,1721585440365,-500.0,0.00015606,2]
[332856037,1721585440378,-500.0,0.00015606,2]
[332856038,1721585440388,-500.0,0.00015606,2]
[332856039,1721585440398,-500.0,0.00015606,2]
[332856040,1721585440407,-500.0,0.00015606,2]
[332856041,1721585440417,-360.00000002,0.00015606,2]
[332856042,1721585440426,-500.0,0.00015606,2]
[332856043,1721585440436,-500.0,0.00015606,2]
[332856044,1721585440447,-500.0,0.00015606,2]
[332856045,1721585440458,-500.0,0.00015606,2]
[332856046,1721585440471,-500.0,0.00015606,2]
[332856047,1721585440490,-500.0,0.00015606,2]
[332856048,1721585440499,-500.0,0.00015606,2]
[332856049,1721585440509,-500.0,0.00015606,2]
[332856050,1721585440519,-500.0,0.00015606,2]
[332856051,1721585440529,-643.18344939,0.00015606,2]
[332856052,1721585440539,-500.0,0.00015606,2]
[332856053,1721585440550,-500.0,0.00015606,2]
[332856054,1721585440559,-500.0,0.00015606,2]
[332856055,1721585440569,-500.0,0.00015606,2]
[332856056,1721585440578,-501.54499791,0.00015606,2]
[332856057,1721585440588,-542.51035399,0.00015606,2]
[332856058,1721585440597,-502.29692296,0.00015606,2]
[332856059,1721585440606,-500.0,0.00015606,2]
[332856060,1721585440616,-500.0,0.00015606,2]
[332856061,1721585440630,-500.0,0.00015606,2]
[332856062,1721585440639,-500.0,0.00015606,2]
[332856063,1721585440649,-505.59469807,0.00015606,2]
[332856064,1721585440658,-500.0,0.00015606,2]
[332856065,1721585440668,-500.0,0.00015606,2]
[332856066,1721585440677,-500.0,0.00015606,2]
[332856067,1721585440686,-500.0,0.00015606,2]
[332856068,1721585440696,-500.0,0.00015606,2]
[332856069,1721585440705,-500.0,0.00015606,2]
[332856070,1721585440714,-500.0,0.00015606,2]
[332856071,1721585440724,-505.04722869,0.00015606,2]
[332856072,1721585440735,-500.0,0.00015606,2]
[332856073,1721585440744,-500.0,0.00015606,2]
[332856074,1721585440754,-500.0,0.00015606,2]
[332856075,1721585440764,-500.0,0.00015606,2]
[332856076,1721585440773,-644.61,0.00015606,2]
[332856077,1721585440783,-500.0,0.00015606,2]
[332856078,1721585440792,-500.0,0.00015606,2]
[332856079,1721585440802,-500.0,0.00015606,2]
[332856080,1721585440811,-506.67046312,0.00015606,2]
[332856081,1721585440820,-500.0,0.00015606,2]
[332856082,1721585440830,-500.0,0.00015606,2]
[332856083,1721585440840,-512.12751702,0.00015606,2]
[332856084,1721585440850,-500.0,0.00015606,2]
[332856085,1721585440859,-500.0,0.00015606,2]
[332856086,1721585440870,-500.0,0.00015606,2]
[332856087,1721585440888,-500.0,0.00015606,2]
[332856088,1721585440898,-500.0,0.00015606,2]
[332856089,1721585440907,-500.0,0.00015606,2]
[332856090,1721585440919,-500.0,0.00015606,2]
[332856091,1721585440929,-500.0,0.00015606,2]
[332856092,1721585440939,-500.0,0.00015606,2]
[332856093,1721585440950,-500.0,0.00015606,2]
[332856094,1721585440962,-500.0,0.00015606,2]
[332856095,1721585440972,-500.0,0.00015606,2]
[332856096,1721585440983,-500.0,0.00015606,2]
[332856097,1721585440993,-502.28806562,0.00015606,2]
[332856098,1721585441004,-502.20136358,0.00015606,2]
[332856099,1721585441014,-500.0,0.00015606,2]
[332856100,1721585441024,-500.0,0.00015606,2]
[332856101,1721585441035,-500.0,0.00015606,2]
[332856102,1721585441045,-500.0,0.00015606,2]
[332856103,1721585441055,-500.0,0.00015606,2]
[332856104,1721585441066,-500.0,0.00015606,2]
[332856105,1721585441076,-500.0,0.00015606,2]
[332856106,1721585441086,-582.12759626,0.00015606,2]
[332856107,1721585441096,-500.0,0.00015606,2]
[332856108,1721585441105,-500.0,0.00015606,2]
[332856109,1721585441115,-500.0,0.00015606,2]
[332856110,1721585441132,-500.0,0.00015606,2]
[332856111,1721585441142,-500.0,0.00015606,2]
[332856112,1721585441152,-500.0,0.00015606,2]
[332856113,1721585441163,-500.0,0.00015606,2]
[332856114,1721585441173,-500.0,0.00015606,2]
[332856115,1721585441182,-500.0,0.00015606,2]
[332856116,1721585441193,-500.0,0.00015606,2]
[332856117,1721585441203,-496.62748082,0.00015606,2]
[332856118,1721585441212,-500.0,0.00015606,2]
[332856119,1721585441222,-500.0,0.00015606,2]
[332856120,1721585441232,-500.0,0.00015606,2]
[332856121,1721585441242,-500.0,0.00015606,2]
[332856122,1721585441251,-500.0,0.00015606,2]
[332856123,1721585441260,-500.0,0.00015606,2]
[332856124,1721585441270,-500.0,0.00015606,2]
[332856125,1721585441279,-500.0,0.00015606,2]
[332856126,1721585441289,-500.0,0.00015606,2]
[332856127,1721585441299,-500.0,0.00015606,2]
[332856128,1721585441308,-507.11998073,0.00015606,2]
[332856129,1721585441318,-500.0,0.00015606,2]
[332856130,1721585441328,-500.0,0.00015606,2]
[332856131,1721585441337,-500.0,0.00015606,2]
[332856132,1721585441347,-500.0,0.00015606,2]
[332856133,1721585441356,-500.0,0.00015606,2]
[332856134,1721585441367,-500.0,0.00015606,2]
[332856135,1721585441382,-500.0,0.00015606,2]
[332856136,1721585441391,-500.0,0.00015606,2]
[332856137,1721585441401,-500.0,0.00015606,2]
[332856138,1721585441410,-500.0,0.00015606,2]
[332856139,1721585441419,-500.0,0.00015606,2]
[332856140,1721585441429,-451.89866609,0.00015606,2]
[332856141,1721585441440,-500.0,0.00015606,2]
[332856142,1721585441452,-500.0,0.00015606,2]
[332856143,1721585441461,-500.0,0.00015606,2]
[332856144,1721585441471,-500.0,0.00015606,2]
[332856145,1721585441480,-365.79076705,0.00015606,2]
[332856146,1721585441491,-500.0,0.00015606,2]
[332856147,1721585441500,-500.0,0.00015606,2]
[332856148,1721585441509,-500.0,0.00015606,2]
[332856149,1721585441518,-500.0,0.00015606,2]
[332856150,1721585441527,-240.52165091,0.00015606,2]
[332856151,1721585441537,-500.0,0.00015606,2]
[332856152,1721585441547,-500.0,0.00015606,2]
[332856153,1721585441556,-500.0,0.00015606,2]
[332856154,1721585441566,-500.0,0.00015606,2]
[332856155,1721585441576,-500.93197239,0.00015606,2]
[332856156,1721585441585,-500.0,0.00015606,2]
[332856157,1721585441594,-503.29233053,0.00015606,2]
[332856158,1721585441604,-242.32875306,0.00015606,2]
[332856159,1721585441614,-366.01015319,0.00015606,2]
[332856160,1721585441628,-500.0,0.00015606,2]
[332856161,1721585441640,-522.13426969,0.00015606,2]
[332856162,1721585441649,-634.26845223,0.00015606,2]
[332856163,1721585441658,-500.0,0.00015606,2]
[332856164,1721585441668,-213.79407784,0.00015606,2]
[332856165,1721585441677,-501.05158394,0.00015606,2]
[332856166,1721585441686,-500.0,0.00015606,2]
[332856167,1721585441695,-506.60669179,0.00015606,2]
[332856168,1721585441705,-511.30419406,0.00015606,2]
[332856169,1721585441715,-500.0,0.00015606,2]
[332856170,1721585441724,-514.37510066,0.00015606,2]
[332856171,1721585441734,-500.0,0.00015606,2]
[332856172,1721585441743,-219.74642158,0.00015607,2]
[332856173,1721585441753,-500.0,0.00015608,2]
[332856174,1721585441762,-500.0,0.00015608,2]
[332856175,1721585441772,-1987.57,0.00015608,2]
[332856176,1721585441782,-1987.57,0.00015608,2]
[332856177,1721585441791,-500.0,0.00015608,2]
[332856178,1721585441801,-88888.0,0.00015609,2]
[332856179,1721585441810,-500.0,0.00015627,2]
[332856180,1721585441820,-500.0,0.00015694,2]
[332856181,1721585441829,-500.0,0.00015697,2]
[332856182,1721585441839,-1987.57,0.00015697,2]
[332856183,1721585441848,-35920.3841098,0.00015697,2]
[332856184,1721585441858,-35920.3841098,0.00015698,2]
[332856185,1721585441867,-23946.9227399,0.00015699,2]
[332856186,1721585441881,-150.112233,0.000157,2]
[332856187,1721585441891,-500.0,0.00015706,2]
[332856188,1721585441900,-336.34303179,0.00015706,2]
[332856189,1721585441909,-500.0,0.00015706,2]
[332856190,1721585441918,-500.0,0.00015706,2]
[332856191,1721585441928,-500.0,0.00015706,2]
[332856192,1721585441937,-500.0,0.00015706,2]
[332856193,1721585441947,-500.0,0.00015706,2]
[332856194,1721585441958,-1987.57,0.00015706,2]
[332856195,1721585441967,-1987.57,0.00015706,2]
[332856196,1721585441976,-1987.57,0.00015706,2]
[332856197,1721585441986,-8542.31427784,0.00015707,5]
[332856198,1721585441995,-39819.30413608,0.00015707,2]
[332856199,1721585442004,-3382.57755669,0.00015707,2]
[332856200,1721585442014,-6240.04541003,0.00015707,2]
[332856201,1721585442024,-16287.37045741,0.00015707,2]
[332856202,1721585442042,-626.38129753,0.00015707,2]
[332856209,1721585442909,-500.0,0.00015598,2]
[332856210,1721585442918,-500.0,0.00015598,2]
[332856211,1721585442929,-501.12390469,0.00015606,2]
[332856212,1721585442938,-500.0,0.00015606,2]
[332856213,1721585442948,-3439.75382447,0.00015707,2]
[332856214,1721585442959,-10582.97822995,0.00015707,2]
[332856215,1721585442969,-6797.42567984,0.00015707,2]
[332856216,1721585442979,-638.20601855,0.00015707,2]
[332856217,1721585442990,-21558.54694081,0.00015707,2]
[332856218,1721585443000,-151.0,0.00015707,2]
[332856219,1721585443010,-500.0,0.00015707,2]
[332856220,1721585443020,-500.0,0.00015707,2]
[332856221,1721585443030,-500.0,0.00015707,2]
[332856222,1721585443040,-500.0,0.00015707,2]
[332856223,1721585443049,-1558.84773963,0.00015707,2]
[332856227,1721585443061,-428.72226037,0.00015707,2]
[332856229,1721585443071,-1987.57,0.00015707,2]
[332856232,1721585443080,-1987.57,0.00015707,2]
[332856234,1721585443089,-1987.57,0.00015707,2]
[332856237,1721585443099,-151.0,0.00015707,2]
[332856239,1721585443109,-256.28882553,0.00015708,2]
[332856241,1721585443119,-2123.34975363,0.00015708,2]
[332856243,1721585443134,-2084.63785308,0.00015708,2]
[332856245,1721585443144,-5481.02975558,0.00015708,2]
[332856247,1721585443155,-1428.43578244,0.00015708,2]
[332856249,1721585443165,-2811.0007313,0.00015708,2]
[332856251,1721585443175,-1628.59285973,0.00015708,2]
[332856253,1721585443184,-1696.56734291,0.00015708,2]
[332856256,1721585443195,-4584.52097443,0.00015708,2]
[332856259,1721585443205,-4103.65511424,0.00015708,2]
[332856262,1721585443215,-10079.46404801,0.00015708,2]
[332856264,1721585443225,-1161.54143485,0.00015708,2]
[332856265,1721585443235,-3774.60857808,0.00015708,2]
[332856266,1721585443245,-1700.38595672,0.00015708,2]
[332856267,1721585443255,-963.11628763,0.00015708,2]
[332856337,1721585444799,-500.0,0.00015606,2]
[332856338,1721585444809,-9508.42576856,0.00015708,2]
[332856339,1721585444821,-6837.59115392,0.00015708,2]
[332856341,1721585444834,-10331.32771747,0.00015708,2]
[332856342,1721585444844,-5084.78677787,0.00015708,2]
[332856343,1721585444856,-869.94591213,0.00015708,2]
[332856345,1721585444868,-330.29329238,0.00015708,2]
[332856347,1721585444885,-995.76253536,0.00015708,2]
[332856364,1721585450489,-310.73234032,0.00015594,2]
[332856365,1721585450501,-64.91801078,0.00015594,2]
[332856366,1721585450510,-500.0,0.00015598,2]
[332856367,1721585450521,-500.0,0.00015598,2]
[332856368,1721585450531,-500.0,0.00015605,2]
[332856369,1721585450540,-500.0,0.00015605,2]
[332856370,1721585450550,-512.62295558,0.00015606,2]
[332856371,1721585450559,-500.0,0.00015606,2]
[332856372,1721585450568,-500.0,0.00015606,2]
[332856373,1721585450578,-500.0,0.00015606,2]
[332856374,1721585450588,-500.0,0.00015606,2]
[332856375,1721585450597,-151.0,0.00015707,2]
[332856376,1721585450606,-151.0,0.00015707,2]
[332856377,1721585450615,-54.07679117,0.00015707,2]
[332856378,1721585452100,376.96,0.00010959,2]
[332856406,1721585806069,-727.18300294,9.899e-05,2]
[332856407,1721585806093,-256.03848324,9.999e-05,2]
[332856408,1721585806118,-526.40635673,9.999e-05,2]
[332856409,1721585806143,-526.40635673,9.999e-05,2]
[332856410,1721585806168,-250.0,0.00012602,2]
[332856411,1721585806196,-250.0,0.00012636,2]
[332856412,1721585806221,-250.0,0.00012671,2]
[332856413,1721585806247,-250.0,0.00012705,2]
[332856414,1721585806272,-250.0,0.0001274,2]
[332856415,1721585806298,-250.0,0.00012774,2]
[332856416,1721585806323,-250.0,0.00012809,2]
[332856417,1721585806348,-250.0,0.00012844,2]
[332856418,1721585806374,-141.96580036,0.00012878,2]
[332856430,1721586426117,-300.0,9.998e-05,2]
[332856431,1721586428285,-300.0,9.998e-05,2]
[332856432,1721586428306,-361.92851743,9.999e-05,2]
[332856433,1721586428329,-526.40635673,9.999e-05,2]
[332856434,1721586428350,-663.44744723,9.999e-05,2]
[332856435,1721586428375,-887.31675178,9.999e-05,2]
[332856436,1721586428398,-175.44767719,9.999e-05,2]
[332856437,1721586428420,-172.77789669,9.999e-05,2]
[332856438,1721586428444,-422.02248001,9.999e-05,2]
[332856439,1721586428465,-154.80649189,9.999e-05,2]
[332856440,1721586428487,-778.7273512,9.999e-05,2]
[332856441,1721586428510,-994.2327366,9.999e-05,2]
[332856442,1721586428535,-154.77557542,9.999e-05,2]
[332856443,1721586428556,-175.59147886,9.999e-05,2]
[332856444,1721586428577,-179.80534882,9.999e-05,2]
[332856445,1721586428599,-154.87490878,9.999e-05,2]
[332856446,1721586428620,-600.13398143,9.999e-05,2]
[332856447,1721586428642,-154.80649189,9.999e-05,2]
[332856448,1721586428665,-726.4559758,9.999e-05,2]
[332856449,1721586428690,-154.80649189,9.999e-05,2]
[332856450,1721586428713,-155.14626466,9.999e-05,2]